Cogmind - Beta 14 @@@ ROGUE MODE // 2024.12.31 @ 11:25:16 Player: Spencer_Rockford Result: Destroyed by Y-45 Defender with Beam Rifle Performance ------------- Evolutions (2) 1000 Regions Visited (4) 800 Robots Destroyed (40) 200 Value Destroyed (965) 965 Prototype IDs (2) 40 Alien Tech Used (0) 0 Bonus (58) 58 TOTAL SCORE: 3063 Bonus ------- Follower Combat Kills 58 Cogmind --------- Core Integrity 0/550 Matter 15/300 Energy 125/125 System Corruption 0% Temperature Cool (9) Movement Walking (470) Ox5 Location -8/Materials Parts ------- > --- POWER (1) -------- Light Ion Engine > --- PROPULSION (2) --- Aluminum Leg > --- UTILITY (6) ------ Medium Storage Unit Medium Storage Unit Targeting Computer Hardened Medium Armor Plating Hardened Medium Armor Plating Hardened Medium Armor Plating > --- WEAPON (2) ------- Rocket Launcher > --- INVENTORY (10) --- Light Ion Engine Wheel Medium Storage Unit Structural Scanner Improved Signal Interpreter Improved Signal Interpreter Hardened Medium Armor Plating High-powered Tractor Beam Heavy EM Pulse Gun EM Pulse Cannon Peak State ------------ > --- POWER ------------ Light Deuterium Engine > --- PROPULSION ------- Aluminum Leg Aluminum Leg > --- UTILITY ---------- Heat Sink Improved Heat Sink Medium Storage Unit Medium Storage Unit Targeting Computer Hacking Suite > --- WEAPON ----------- Pulse Rifle Pulse Rifle > --- INVENTORY -------- Aluminum Leg Wheel Medium Storage Unit Structural Scanner Improved Signal Interpreter High-powered Tractor Beam Heavy EM Pulse Gun Pulse Rifle EM Pulse Cannon Autogun [Rating: 23] Favorites ----------- Power Light Ion Engine Engine Light Ion Engine Propulsion Aluminum Leg Leg Aluminum Leg Utility Small Storage Unit Device Heat Sink Storage Small Storage Unit Processor Targeting Computer Hackware Hacking Suite Protection Hardened Medium Armor Plating Weapon Assault Rifle Energy Gun EM Pulse Gun Energy Cannon EM Pulse Cannon Ballistic Gun Assault Rifle Launcher Rocket Launcher Build | -11 -10 -10 -9 -8 ------- Run | Yrd Mat Min Mat Mat Slots Evolved 4 | . . . 2 2 Power . | . . . . . Propulsion . | . . . . . Utility 4 | . . . 2 2 Weapon . | . . . . . Parts Attached 39 | 7 . 2 7 23 Power 4 | 1 . . 1 2 Engine 4 | 1 . . 1 2 Core . | . . . . . Reactor . | . . . . . Propulsion 6 | 2 . . 1 3 Treads . | . . . . . Leg 6 | 2 . . 1 3 Wheel . | . . . . . Hover . | . . . . . Flight . | . . . . . Utility 13 | 2 . . 4 7 Device 3 | . . . 1 2 Storage 4 | 2 . . 2 . Processor 1 | . . . 1 . Hackware 1 | . . . . 1 Protection 4 | . . . . 4 Artifact . | . . . . . Weapon 16 | 2 . 2 1 11 Energy Gun 8 | 2 . 1 . 5 Energy Cannon 1 | . . . . 1 Ballistic Gun 4 | . . 1 1 2 Ballistic Cannon . | . . . . . Launcher 3 | . . . . 3 Special Weapon . | . . . . . Impact Weapon . | . . . . . Slashing Weapon . | . . . . . Piercing Weapon . | . . . . . Special Melee Weapon . | . . . . . Unidentified Prototypes . | . . . . . Parts Lost 18 | . 1 . 2 15 Power 2 | . . . 1 1 Propulsion 5 | . . . 1 4 Utility 4 | . . . . 4 Weapon 7 | . 1 . . 6 Highest Loss Streak 8 | . 1 . 2 8 To Critical Strikes 1 | . . . . 1 Average Slot Usage (%) 90 | . 97 100 98 79 Engine 9 | . 14 14 10 5 Leg 18 | . 28 28 21 9 Device 6 | . . . 11 8 Storage 22 | . 28 28 22 18 Processor 6 | . . . 11 9 Hackware 2 | . . . . 5 Protection 4 | . . . . 9 Energy Gun 9 | . 26 14 1 5 Ballistic Gun 9 | . . 14 20 4 Launcher 1 | . . . . 3 Peak Build Rating 23 | 7 7 7 10 23 Average Rating 11 | 5 6 6 9 16 On Entrance 6 | . 7 6 7 10 Naked Turns . | . . . . . Heaviest Build 51 | 17 17 17 31 51 Greatest Support 20 | 20 20 20 20 20 Greatest Overweight (x) 15 | . . . 1 15 Average Overweight (x) . | . . . . 3 Largest Inventory Capacity 10 | 8 8 8 10 10 Average Capacity 8 | 7 8 8 8 10 Most Carried 10 | 5 2 5 7 10 Average Carried 5 | 1 1 3 5 8 Final Capacity 10 | 8 8 8 10 10 Final Carried 10 | 1 2 5 7 10 Class Distribution -------------------- 77% | Mutant 22% | Scavenger-Mutant Dominant Class ---------------- Mutant | -10/Materials Mutant | -10/Mines Mutant | -9/Materials Mutant | -8/Materials Resources | -11 -10 -10 -9 -8 ----------- Run | Yrd Mat Min Mat Mat Matter Collected 762 | 270 . 56 245 191 Remotely . | . . . . . Salvage Created 1181 | 131 . 114 276 660 Parts 70 | 11 . 5 14 40 Haulers Intercepted 1 | . . . . 1 Recyclers Shooed 2 | . . . . 2 Parts Field Recycled . | . . . . . Retrieved Matter . | . . . . . Parts Self-Destructed . | . . . . . Prevented . | . . . . . Kills | -11 -10 -10 -9 -8 ------- Run | Yrd Mat Min Mat Mat Combat Hostiles Destroyed 19 | . . 2 6 11 Guns 15 | . . 1 6 8 AOE 4 | . . 1 . 3 Classes Destroyed 10 | 3 . 1 2 4 Worker 7 | 2 . 1 . 4 Builder 6 | . . . . 6 Tunneler 1 | 1 . . . . Hauler 1 | . . . . 1 Recycler 2 | 1 . . . 1 Operator 2 | . . . 2 . Watcher 2 | . . . . 2 Grunt 17 | . . 2 5 10 Brawler 1 | . . . 1 . Hunter 1 | . . . . 1 Best Kill Streak 10 | 2 . 2 3 10 Combat Bots Only 3 | . . 2 3 3 Max Kills in Single Turn 3 | 1 . 1 1 3 Gunslinging . | . . . . . Exploded 1 | . . 1 . 1 Melee . | . . . . . Uniques/NPCs Destroyed . | . . . . . Combat | -11 -10 -10 -9 -8 -------- Run | Yrd Mat Min Mat Mat Hostile Shots Fired 326 | . 54 9 60 203 Missed 118 | . 22 4 23 69 Damage Taken 2947 | . 256 71 465 2155 Core 703 | . 76 . 64 563 Absorbed by Shields . | . . . . . Core Remaining (%) 84 | 100 . 69 84 . Volleys Fired 114 | 11 4 12 31 56 Largest 2 | 2 2 2 2 2 Hottest 126 | 80 80 60 60 126 Shots Fired 209 | 22 8 24 62 93 Gun 191 | 22 8 24 62 75 Cannon 2 | . . . . 2 Launcher 16 | . . . . 16 Special . | . . . . . Kinetic 102 | . . 12 59 31 Thermal 45 | . . . 3 42 Explosive 16 | . . . . 16 Electromagnetic 46 | 22 8 12 . 4 Robot Hit Streak 19 | 3 1 6 13 19 Robot Miss Streak 6 | 3 4 3 6 4 Penetration Max . | . . . . . Secondary Targets 2 | . . . 1 1 Max Gunslinging Chain 1 | . . . 1 1 Shots Hit Robots 129 | 11 1 15 35 67 Core Hits 78 | 5 . 5 13 55 Critical Kills 1 | . . . . 1 Critical Parts Destroyed 2 | . . . 1 1 Critical Strikes 4 | 1 . . 1 2 Destroy 3 | . . . 1 2 Corrupt 1 | 1 . . . . Melee Attacks . | . . . . . Impact . | . . . . . Slashing . | . . . . . Piercing . | . . . . . Sneak Attacks . | . . . . . Combat Hostiles . | . . . . . Follow-up Attacks . | . . . . . Damage Inflicted 2952 | 146 . 217 535 2054 Guns 1762 | 146 . 186 535 895 Cannons 26 | . . . . 26 Explosions 1164 | . . 31 . 1133 Melee . | . . . . . Ramming . | . . . . . Kinetic 938 | . . 92 535 311 Thermal 599 | . . 31 . 568 Explosive 1133 | . . . . 1133 Electromagnetic 282 | 146 . 94 . 42 Impact . | . . . . . Slashing . | . . . . . Piercing . | . . . . . Highest Corruption . | . . . . . Average Corruption . | . . . . . Corruption Purged . | . . . . . Corruption Blocked . | . . . . . Overload Shots . | . . . . . Overflow Damage 26 | . . . . 26 Projectiles . | . . . . . Explosions 26 | . . . . 26 Melee . | . . . . . Knockbacks . | . . . . . Impact . | . . . . . Kinetic . | . . . . . Secondary . | . . . . . Self-Inflicted Damage 124 | . . . . 124 Shots 5 | . . . . 5 Rammed . | . . . . . Targets Rammed . | . . . . . Kicked . | . . . . . Crushed . | . . . . . Highest Temperature 216 | 54 36 42 . 216 Average Temperature 41 | 23 16 21 . 60 Received Heat Transfer 1254 | . 6 42 216 990 Siege Activations . | . . . . . Robots Corrupted . | . . . . . Combat Hostiles . | . . . . . Parts Fried 2 | 2 . . . . Impact Corruptions . | . . . . . Robots Melted . | . . . . . Combat Hostiles . | . . . . . Parts Melted 3 | . . . . 3 Heat Transferred 1271 | . . 50 . 1221 Parts Sabotaged . | . . . . . Parts Stolen . | . . . . . Parts Stripped . | . . . . . Power Chain Reactions 1 | . . 1 . . Alert | -11 -10 -10 -9 -8 ------- Run | Yrd Mat Min Mat Mat Peak Influence 294 | 20 58 77 232 294 Initial 97 | . 13 18 29 97 Average 114 | 4 27 61 159 160 Maximum Alert Level 1 | . . . 1 1 Low Security (%) 78 | 100 100 100 49 73 Level 1 21 | . . . 50 26 Level 2 . | . . . . . Level 3 . | . . . . . Level 4 . | . . . . . Level 5 . | . . . . . High Security . | . . . . . Max Security . | . . . . . Squads Dispatched 5 | . 1 . 2 2 Investigation . | . . . . . Extermination . | . . . . . Reinforcement 5 | . 1 . 2 2 Assault . | . . . . . Garrison . | . . . . . Intercept . | . . . . . Searches Triggered . | . . . . . Construction Impeded 1 | . . . . 1 Haulers Reinforced . | . . . . . Active Scanning Responses . | . . . . . Cargo Convoy Interrupts . | . . . . . Stealth | -11 -10 -10 -9 -8 --------- Run | Yrd Mat Min Mat Mat Distress Signals 2 | . . . . 2 Communications Jammed . | . . . . . Distress Signals . | . . . . . Times Spotted 43 | . 8 2 13 20 Peak Tracking Total 6 | . 6 2 3 5 Tactical Retreats 1 | . . . . 1 Traps | -11 -10 -10 -9 -8 ------- Run | Yrd Mat Min Mat Mat Traps Triggered . | . . . . . Indirectly . | . . . . . Trap Hack Attempts . | . . . . . Triggered . | . . . . . Disarmed . | . . . . . Reprogrammed . | . . . . . Reused . | . . . . . Traps Extracted . | . . . . . Installed . | . . . . . Triggered . | . . . . . Machines | -11 -10 -10 -9 -8 ---------- Run | Yrd Mat Min Mat Mat Machines Disabled 1 | . . . . 1 Max in Single Turn 1 | . . . . 1 Machines Repaired . | . . . . . Machines Dismantled . | . . . . . Machines Sabotaged . | . . . . . Overloaded Fab Kills . | . . . . . Hacking | -11 -10 -10 -9 -8 --------- Run | Yrd Mat Min Mat Mat Machines Accessed 4 | . 4 . . . Terminals 3 | . 3 . . . Fabricators . | . . . . . Repair Stations . | . . . . . Recycling Units 1 | . 1 . . . Scanalyzers . | . . . . . Garrison Access . | . . . . . Total Hacks 10 | . 10 . . . Successful 4 | . 4 . . . Failed 6 | . 6 . . . Catastrophic 1 | . 1 . . . Database Lockouts . | . . . . . Manual 4 | . 4 . . . Terminals 7 | . 7 . . . Fabricators . | . . . . . Repair Stations . | . . . . . Recycling Units 3 | . 3 . . . Scanalyzers . | . . . . . Garrison Access . | . . . . . Terminal Hacks 2 | . 2 . . . Prototype ID Bank 1 | . 1 . . . Locate Traps 1 | . 1 . . . Fabricator Hacks . | . . . . . Repair Station Hacks . | . . . . . Recycling Unit Hacks 2 | . 2 . . . Retrieve Matter 2 | . 2 . . . Scanalyzer . | . . . . . Garrison Access Hacks . | . . . . . Unauthorized Hacks . | . . . . . Terminals . | . . . . . Fabricators . | . . . . . Repair Stations . | . . . . . Recycling Units . | . . . . . Scanalyzers . | . . . . . Garrison Access . | . . . . . Data Cores Recovered . | . . . . . Used . | . . . . . Hacking Detections 4 | . 4 . . . Full Trace Events 1 | . 1 . . . Feedback Events . | . . . . . Feedback Blocked . | . . . . . Robot Schematics Acquired . | . . . . . Robots Built . | . . . . . Authchips . | . . . . . Time . | . . . . . Total Robot Build Rating . | . . . . . Part Schematics Acquired . | . . . . . Parts Built . | . . . . . Authchips . | . . . . . Time . | . . . . . Total Part Build Rating . | . . . . . Parts Repaired . | . . . . . Time . | . . . . . Parts Recycled . | . . . . . Recycled Matter . | . . . . . Retrieved Matter . | . . . . . Retrieved Components . | . . . . . Parts Scanalyzed . | . . . . . Part Schematics Acquired . | . . . . . Parts Damaged . | . . . . . Bothacking | -11 -10 -10 -9 -8 ------------ Run | Yrd Mat Min Mat Mat Used RIF Installer . | . . . . . Robots Hacked . | . . . . . Non-combat . | . . . . . Combat . | . . . . . Robot Hacks Applied . | . . . . . Relay Couplers Released . | . . . . . Fabnet Peak Effective % . | . . . . . Robots Rewired . | . . . . . Allies Hacked . | . . . . . Hacks Repelled . | . . . . . Allies | -11 -10 -10 -9 -8 -------- Run | Yrd Mat Min Mat Mat Total Allies 2 | . . 2 . . Largest Group 2 | . . 2 2 . Highest-Rated Group 49 | . . 49 49 . Highest-Rated Ally 31 | . . 31 31 . Total Orders . | . . . . . Ally Attacks 14 | . . . 14 . Total Damage 276 | . . . 276 . Kills 2 | . . . 2 . Allies Corrupted . | . . . . . Allies Melted . | . . . . . Intel | -11 -10 -10 -9 -8 ------- Run | Yrd Mat Min Mat Mat Robot Analysis Total . | . . . . . Derelict Logs Recovered 1 | . . 1 . . Drone Launches . | . . . . . Drone Recoveries . | . . . . . Exploration | -11 -10 -10 -9 -8 ------------- Run | Yrd Mat Min Mat Mat Turns Passed 1664 | 113 209 309 358 675 Spaces Moved 755 | 66 164 222 153 150 Core 47 | 19 . . . 28 Treads . | . . . . . Legs 708 | 47 164 222 153 122 Wheels . | . . . . . Hover . | . . . . . Flight . | . . . . . Fastest Speed 50 | 50 120 120 120 190 Average Speed 165 | 99 120 120 159 315 Slowest Speed 800 | 120 120 120 190 800 Overloaded Moves . | . . . . . Propulsion Burnouts . | . . . . . Robots Hopped . | . . . . . Cave-ins Triggered . | . . . . . Exploration Rate (%) 23 | 4 38 47 11 15 Regions Visited 4 Branch Regions 1 Pre-discovered Areas . | . . . . . Known Exits Taken . | . . . . . Unknown Exits Taken 4 | 1 1 1 1 . Scrap Searched 1 | . . 1 . . Spaces Dug . | . . . . . Terrain Destroyed 61 | . . 4 . 57 Melee . | . . . . . Projectile . | . . . . . AOE 61 | . . 4 . 57 Terrain Rammed . | . . . . . Walls Destroyed . | . . . . . Machines Disabled . | . . . . . Actions | -11 -10 -10 -9 -8 --------- Run | Yrd Mat Min Mat Mat Total 969 | 90 168 241 211 259 Wait 17 | . . . 11 6 Move 751 | 65 163 221 152 150 Hop . | . . . . . Pick Up 40 | 7 1 5 8 19 Fast Attach 4 | 1 . . . 3 Attach 24 | 6 . 2 4 12 Detach . | . . . . . Swap 11 | . . . 3 8 Drop 8 | . . 1 2 5 Fire 114 | 11 4 12 31 56 Melee . | . . . . . Ram . | . . . . . Kick . | . . . . . Crush . | . . . . . Escape Stasis . | . . . . . Rewire . | . . . . . Trap . | . . . . . Miscellaneous . | . . . . . Route ------- -11/Scrapyard -10/Materials -10/Mines -9/Materials -8/Materials History --------- Turn | Location | Event 10 | -11/Scrapyard | Discovered new exit (range 13) 114 | -11/Scrapyard | Entered Materials 305 | -10/Materials | Build established: Mutant 309 | -10/Materials | Discovered new exit (range 13) 323 | -10/Materials | Entered Mines 539 | -10/Mines | Learned 2 Materials zone layouts 618 | -10/Mines | Discovered new exit (range 8) 632 | -10/Mines | Entered Materials 632 | -9/Materials | Accompanied by 2 allies 632 | -9/Materials | Evolved 2 slots: Utility x2 637 | -9/Materials | Led the pair of lost Derelicts to an unsafe place 962 | -9/Materials | Discovered new exit (range 16) 990 | -9/Materials | Entered another Materials area 990 | -8/Materials | Evolved 2 slots: Utility x2 1323 | -8/Materials | Lost 3 parts (1p2n) 1366 | -8/Materials | Core integrity fell below 50% 1393 | -8/Materials | Core integrity fell below 20% 1427 | -8/Materials | Lost 8 parts (3u5w) 1665 | -8/Materials | Destroyed by Y-45 Defender with Beam Rifle Last Messages --------------- 01615_ U-05 Engineer builds a Wall. 01616_ K-01 Serf collects debris. 01617_ U-05 Engineer builds a Wall. 01623_ U-05 Engineer lays Concrete. 01623_ U-05 Engineer builds a Wall. 01626_ U-05 Engineer lays Concrete. 01628_ U-05 Engineer builds a Wall. 01629_ U-05 Engineer lays Concrete. 01648_ Rocket Launcher destroyed. 01649_ Acquired Rocket Launcher. 01651_ U-05 Engineer lays Concrete. 01652_ Destroyed Wheel. 01652_ U-05 Engineer destroyed. 01653_ ALERT: Construction progress impeded, dispatching reinforcements to local area. 01654_ Destroyed Imp. Hover Unit. 01654_ U-05 Engineer destroyed. 01654_ A-02 Transporter destroyed. 01656_ Destroyed Lgt. Deuterium Engine. 01658_ W-25 Informer destroyed. Map ----- +----------------------------------------------------+ | ?????????????????????????????????????????????????? | | ?????????????????????????????????????????????????? | | ?????????????????????????????????????????????????? | | ?????????????????????????????????????????????????? | | ?????????????????????????????????????????????????? | | ?????????????????????????????????????????????????? | | ?????????????????????????????????????????????????? | | ?????????????????????????????????????????????????? | | ?????????????????????????????????????????????????? | | ?????????????????????????????????????????????????? | | ?????????????????????????????????????????????????? | | ?????????????????? ?????????????????????????????? | | ????????????????# ?????????????????????????????? | | ???????????????## #?????????###????????????????? | | ??????????????################ ?????????????????? | | ??????????????## T ?????????????????? | | ??????????????## ??????????????????? | | ?????????????### ???????????????????? | | ????????????# # "" " #???????????????????? | | ???????????? #???????????????????? | | ???????????? #???????????????????? | | ???????#### #???????????????????? | | ?????? % #???????????????????? | | ?????? Y ! = #???????????????????? | | ????? %= % #???????????????????? | | ????? != @ ! #???????????????????? | | ????? #???????????????????? | | ????? #???????????????????? | | ????????####### #### #???????????????????? | | ??????????????### # #???????????????????? | | ????????????????# # #???????????????????? | | ????????????????####a % a#???????????????????? | | ?????????????????# # #???????????????????? | | ?????????????????# # //! #???????????????????? | | ?????????????????### / ! ###?????????????????? | | ??????????????????## / #?????????????????? | | ???????????????????# #?????????????????? | | ?????????+########## #?????????????????? | | ???????? ########?????????????????? | | ???????? #????????????????????????? | | ???????? #????????????????????????? | | ????????? ########### #????????????????????????? | | ????????????????????# ########?????????????????? | | ????????????????????# #! #?????????????????? | | ????????????????????# # ! #?????????????????? | | ????????????????????+ %/% =% #?????????????????? | | ????????????????????# #% [[* #?????????????????? | | ????????????????????# # [ #?????????????????? | | ????????? ########### # [[[ #?????????????????? | | ???????? ########?????????????????? | +----------------------------------------------------+ Best States ------------- Heat Dissipation 55 Energy Generation 14 Energy Capacity 250 Matter Stores 300 Matter Capacity 300 Sight Range 16 Robot Scan Range 14 Terrain Scan Density 10 Armor Coverage 675 Evasion (%) 55 Targeting Accuracy 5 Offensive Hacking 10 Item Schematics ----------------- None Robot Schematics ------------------ None Fabricated ------------ Nothing Alien Tech Used ----------------- None Achievements -------------- None Challenges ------------ None Game ------ Seed GammaMolecularGravjet Manual? 0 Play Time 00:17:40 Cumulative 24.9 hours Start 2024.12.31 @ 11:08:29 End 2024.12.31 @ 11:25:16 Sessions 1 Manual Loads 0 Difficulty Rogue Special Mode None Game No. 59 Rogue 59 Adventurer 0 Explorer 0 Win Type - Total 0 Types 0/0/0/0/0/0/0/0/0 Lore% 17 Gallery% 23 Achievement% 23 Wizard Run 0 Options --------- Layout 1 ASCII 0 Keyboard 0 Movement Mouse Keybinds 0 Fullscreen 2 Font 24/Smallcaps Map View 50x35 Zoom Use 0% Tactical HUD 1 Map Filters NONE Filters NONE Steam 1 RUN: 51df74b8-bd64-4531-a35f-0eb3b1ee6867